[Event "Titled Tuesday Blitz August 16 Late 2022"]
[White "Rios Escobar, Adan"]
[Black "Begmuratov, Khumoyun"]
[WhiteFideId "3403645"]
[BlackFideId "14210207"]
[WhiteElo "2276"]
[BlackElo "1978"]
[Result "1-0"]
[Round "04"]
[TimeControl "180+1"]
[Date "2022.08.18"]
[WhiteClock "0:00:00"]
[BlackClock "0:00:00"]

1. d4 {[%clk 0:00:00]}  Nf6 {[%clk 0:00:00]} 2. g3 {[%clk 0:00:00]}  c5 {[%clk 0:00:00]} 3. d5 {[%clk 0:00:00]}  g6 {[%clk 0:00:00]} 4. c4 {[%clk 0:00:00]}  Bg7 {[%clk 0:00:00]} 5. Nc3 {[%clk 0:00:00]}  e6 {[%clk 0:00:00]} 6. Bg2 {[%clk 0:00:00]}  exd5 {[%clk 0:00:00]} 7. cxd5 {[%clk 0:00:00]}  d6 {[%clk 0:00:00]} 8. Nf3 {[%clk 0:00:00]}  O-O {[%clk 0:00:00]} 9. O-O {[%clk 0:00:00]}  a6 {[%clk 0:00:00]} 10. a4 {[%clk 0:00:00]}  Re8 {[%clk 0:00:00]} 11. Re1 {[%clk 0:00:00]}  Ne4 {[%clk 0:00:00]} 12. Nxe4 {[%clk 0:00:00]}  Rxe4 {[%clk 0:00:00]} 13. Qc2 {[%clk 0:00:00]}  Bf5 {[%clk 0:00:00]} 14. Bh3 {[%clk 0:00:00]}  Qc8 {[%clk 0:00:00]} 15. Qxe4 {[%clk 0:00:00]}  Bxh3 {[%clk 0:00:00]} 16. Ng5 {[%clk 0:00:00]}  Bf5 {[%clk 0:00:00]} 17. Qe7 {[%clk 0:00:00]}  Qd7 {[%clk 0:00:00]} 18. Qxd7 {[%clk 0:00:00]}  Bxd7 {[%clk 0:00:00]} 19. Bf4 {[%clk 0:00:00]}  Bxb2 {[%clk 0:00:00]} 20. Rab1 {[%clk 0:00:00]}  Bc3 {[%clk 0:00:00]} 21. Rec1 {[%clk 0:00:00]}  Bb4 {[%clk 0:00:00]} 22. Bxd6 {[%clk 0:00:00]}  Bxa4 {[%clk 0:00:00]} 23. Rxb4 {[%clk 0:00:00]}  cxb4 {[%clk 0:00:00]} 24. Rc8+ {[%clk 0:00:00]}  Kg7 {[%clk 0:00:00]} 25. Be5+ {[%clk 0:00:00]}  f6 {[%clk 0:00:00]} 26. Ne6+ {[%clk 0:00:00]}  Kf7 {[%clk 0:00:00]} 27. Bd6 {[%clk 0:00:00]}  Be8 {[%clk 0:00:00]} 28. Bxb4 {[%clk 0:00:00]}  a5 {[%clk 0:00:00]} 29. Bd6 {[%clk 0:00:00]}  a4 {[%clk 0:00:00]} 30. Nc7 {[%clk 0:00:00]}  Ra6 {[%clk 0:00:00]} 31. Nxe8 {[%clk 0:00:00]}  Nd7 {[%clk 0:00:00]} 32. Ba3 {[%clk 0:00:00]}  Nb6 {[%clk 0:00:00]} 33. Nd6+ {[%clk 0:00:00]}  Kg7 {[%clk 0:00:00]} 34. Rc7+ {[%clk 0:00:00]}  Kh6 {[%clk 0:00:00]} 35. Nf7+ {[%clk 0:00:00]}  Kg7 {[%clk 0:00:00]} 36. d6 {[%clk 0:00:00]}  Na8 {[%clk 0:00:00]} 37. Rxb7 {[%clk 0:00:00]}  Rb6 {[%clk 0:00:00]} 38. Nd8+ {[%clk 0:00:00]}  Rxb7 {[%clk 0:00:00]} 39. Nxb7 {[%clk 0:00:00]}  Nb6 {[%clk 0:00:00]} 40. Nc5 {[%clk 0:00:00]}  Kf7 {[%clk 0:00:00]} 41. e4 {[%clk 0:00:00]}  Ke8 {[%clk 0:00:00]} 42. f4 {[%clk 0:00:00]}  Nc4 {[%clk 0:00:00]} 43. Bb4 {[%clk 0:00:00]}  a3 {[%clk 0:00:00]} 44. Nb3 {[%clk 0:00:00]}  a2 {[%clk 0:00:00]} 45. Kf2 {[%clk 0:00:00]}  Kd7 {[%clk 0:00:00]} 46. e5 {[%clk 0:00:00]}  fxe5 {[%clk 0:00:00]} 47. fxe5 {[%clk 0:00:00]}  Nxe5 {[%clk 0:00:00]} 48. Ke3 {[%clk 0:00:00]}  Nc6 {[%clk 0:00:00]} 49. Ba3 {[%clk 0:00:00]}  Na5 {[%clk 0:00:00]} 50. Na1 {[%clk 0:00:00]}  Nc4+ {[%clk 0:00:00]} 51. Ke4 {[%clk 0:00:00]}  Nxa3 {[%clk 0:00:00]} 52. Ke5 {[%clk 0:00:00]}  Nb5 {[%clk 0:00:00]} 53. g4 {[%clk 0:00:00]}  Nxd6 {[%clk 0:00:00]} 54. Kf6 {[%clk 0:00:00]}  Ne4+ {[%clk 0:00:00]} 55. Kg7 {[%clk 0:00:00]}  Kd6 {[%clk 0:00:00]} 56. Kxh7 {[%clk 0:00:00]}  Kc5 {[%clk 0:00:00]} 57. Kxg6 {[%clk 0:00:00]}  Kc4 {[%clk 0:00:00]} 58. h4 {[%clk 0:00:00]}  Kc3 {[%clk 0:00:00]} 59. h5 {[%clk 0:00:00]}  Kb2 {[%clk 0:00:00]} 60. h6 {[%clk 0:00:00]}  Kxa1 {[%clk 0:00:00]} 61. h7 {[%clk 0:00:00]}  Kb1 {[%clk 0:00:00]} 62. h8=Q {[%clk 0:00:00]}  a1=Q {[%clk 0:00:00]} 63. Qh1+ {[%clk 0:00:00]}  Kb2 {[%clk 0:00:00]} 64. Qxe4 {[%clk 0:00:00]}  Qa6+ {[%clk 0:00:00]} 65. Kf5 {[%clk 0:00:00]}  Qc8+ {[%clk 0:00:00]} 66. Qe6 {[%clk 0:00:00]}  Qc2+ {[%clk 0:00:00]} 67. Kf6 {[%clk 0:00:00]}  Qf2+ {[%clk 0:00:00]} 68. Ke7 {[%clk 0:00:00]}  Ka3 {[%clk 0:00:00]} 69. Qd6+ {[%clk 0:00:00]}  Ka4 {[%clk 0:00:00]} 70. Qd7+ {[%clk 0:00:00]}  Ka5 {[%clk 0:00:00]} 71. Qf5+ {[%clk 0:00:00]} 1-0


[Site "https://www.chess.com"]

[Event "Titled Tuesday Blitz August 16 Late 2022"]
[White "Romanchuk, Viktor"]
[Black "Martinez Reyes, Pedro Ramon"]
[WhiteFideId "14109271"]
[BlackFideId "3901807"]
[WhiteElo "2242"]
[BlackElo "2327"]
[Result "0-1"]
[Round "04"]
[TimeControl "180+1"]
[Date "2022.08.18"]
[WhiteClock "0:00:00"]
[BlackClock "0:00:00"]

1. d4 {[%clk 0:00:00]}  d6 {[%clk 0:00:00]} 2. c4 {[%clk 0:00:00]}  Nf6 {[%clk 0:00:00]} 3. Nf3 {[%clk 0:00:00]}  Nbd7 {[%clk 0:00:00]} 4. g3 {[%clk 0:00:00]}  e5 {[%clk 0:00:00]} 5. Nc3 {[%clk 0:00:00]}  Be7 {[%clk 0:00:00]} 6. Bg2 {[%clk 0:00:00]}  O-O {[%clk 0:00:00]} 7. O-O {[%clk 0:00:00]}  c6 {[%clk 0:00:00]} 8. e4 {[%clk 0:00:00]}  Qe8 {[%clk 0:00:00]} 9. h3 {[%clk 0:00:00]}  Bd8 {[%clk 0:00:00]} 10. Be3 {[%clk 0:00:00]}  Ba5 {[%clk 0:00:00]} 11. Qc2 {[%clk 0:00:00]}  Bxc3 {[%clk 0:00:00]} 12. bxc3 {[%clk 0:00:00]}  b6 {[%clk 0:00:00]} 13. a4 {[%clk 0:00:00]}  Ba6 {[%clk 0:00:00]} 14. Nd2 {[%clk 0:00:00]}  Rc8 {[%clk 0:00:00]} 15. Rfc1 {[%clk 0:00:00]}  Qe6 {[%clk 0:00:00]} 16. Qa2 {[%clk 0:00:00]}  Rfe8 {[%clk 0:00:00]} 17. a5 {[%clk 0:00:00]}  b5 {[%clk 0:00:00]} 18. cxb5 {[%clk 0:00:00]}  cxb5 {[%clk 0:00:00]} 19. d5 {[%clk 0:00:00]}  Qe7 {[%clk 0:00:00]} 20. Bxa7 {[%clk 0:00:00]}  Nc5 {[%clk 0:00:00]} 21. Bb6 {[%clk 0:00:00]}  Nfd7 {[%clk 0:00:00]} 22. c4 {[%clk 0:00:00]}  bxc4 {[%clk 0:00:00]} 23. Nxc4 {[%clk 0:00:00]}  Bxc4 {[%clk 0:00:00]} 24. Qxc4 {[%clk 0:00:00]}  Nxb6 {[%clk 0:00:00]} 25. axb6 {[%clk 0:00:00]}  Rb8 {[%clk 0:00:00]} 26. Rcb1 {[%clk 0:00:00]}  Rb7 {[%clk 0:00:00]} 27. Qb5 {[%clk 0:00:00]}  Reb8 {[%clk 0:00:00]} 28. Qc6 {[%clk 0:00:00]}  Qd8 {[%clk 0:00:00]} 29. h4 {[%clk 0:00:00]}  g6 {[%clk 0:00:00]} 30. Rb2 {[%clk 0:00:00]}  Rxb6 {[%clk 0:00:00]} 31. Rxb6 {[%clk 0:00:00]}  Qxb6 {[%clk 0:00:00]} 32. Ra8 {[%clk 0:00:00]}  Kg7 {[%clk 0:00:00]} 33. Rxb8 {[%clk 0:00:00]}  Qxb8 {[%clk 0:00:00]} 34. Bf3 {[%clk 0:00:00]}  h5 {[%clk 0:00:00]} 35. Kg2 {[%clk 0:00:00]}  Qd8 {[%clk 0:00:00]} 36. Qb5 {[%clk 0:00:00]}  Qf6 {[%clk 0:00:00]} 37. Qe2 {[%clk 0:00:00]}  Qe7 {[%clk 0:00:00]} 38. Qe3 {[%clk 0:00:00]}  Qc7 {[%clk 0:00:00]} 39. Qg5 {[%clk 0:00:00]}  f6 {[%clk 0:00:00]} 40. Qd2 {[%clk 0:00:00]}  Qb6 {[%clk 0:00:00]} 41. Qe3 {[%clk 0:00:00]}  Qb2 {[%clk 0:00:00]} 42. Qe1 {[%clk 0:00:00]}  Nd3 {[%clk 0:00:00]} 43. Qe2 {[%clk 0:00:00]}  Qd4 {[%clk 0:00:00]} 44. Kg1 {[%clk 0:00:00]}  Qa1+ {[%clk 0:00:00]} 45. Kg2 {[%clk 0:00:00]}  Ne1+ {[%clk 0:00:00]} 46. Kh2 {[%clk 0:00:00]}  Qc3 {[%clk 0:00:00]} 47. Bg2 {[%clk 0:00:00]}  Nd3 {[%clk 0:00:00]} 48. Bf3 {[%clk 0:00:00]}  Qd4 {[%clk 0:00:00]} 49. Kg2 {[%clk 0:00:00]}  Nc5 {[%clk 0:00:00]} 50. Kh2 {[%clk 0:00:00]}  Qc3 {[%clk 0:00:00]} 51. Kg2 {[%clk 0:00:00]}  Nd3 {[%clk 0:00:00]} 52. Kg1 {[%clk 0:00:00]}  Nc1 {[%clk 0:00:00]} 53. Qd1 {[%clk 0:00:00]}  Nb3 {[%clk 0:00:00]} 54. Kg2 {[%clk 0:00:00]}  Nc5 {[%clk 0:00:00]} 55. Qe2 {[%clk 0:00:00]}  Qd4 {[%clk 0:00:00]} 56. Kg1 {[%clk 0:00:00]}  Kh6 {[%clk 0:00:00]} 57. Kg2 {[%clk 0:00:00]}  Nd3 {[%clk 0:00:00]} 58. Qe3+ {[%clk 0:00:00]}  Qxe3 {[%clk 0:00:00]} 59. fxe3 {[%clk 0:00:00]}  Nc5 {[%clk 0:00:00]} 60. Kf1 {[%clk 0:00:00]}  g5 {[%clk 0:00:00]} 61. Ke1 {[%clk 0:00:00]}  gxh4 {[%clk 0:00:00]} 62. gxh4 {[%clk 0:00:00]}  Nd3+ {[%clk 0:00:00]} 63. Ke2 {[%clk 0:00:00]}  Nc5 {[%clk 0:00:00]} 64. Kd2 {[%clk 0:00:00]}  Nd7 {[%clk 0:00:00]} 65. Kc3 {[%clk 0:00:00]}  Nf8 {[%clk 0:00:00]} 66. Kb4 {[%clk 0:00:00]}  Ng6 {[%clk 0:00:00]} 67. Kb5 {[%clk 0:00:00]}  Nxh4 {[%clk 0:00:00]} 68. Bh1 {[%clk 0:00:00]}  f5 {[%clk 0:00:00]} 69. Kc6 {[%clk 0:00:00]}  f4 {[%clk 0:00:00]} 70. exf4 {[%clk 0:00:00]}  exf4 {[%clk 0:00:00]} 71. Kxd6 {[%clk 0:00:00]}  f3 {[%clk 0:00:00]} 72. Bxf3 {[%clk 0:00:00]}  Nxf3 {[%clk 0:00:00]} 73. Ke7 {[%clk 0:00:00]}  h4 {[%clk 0:00:00]} 74. d6 {[%clk 0:00:00]}  Ne5 {[%clk 0:00:00]} 75. d7 {[%clk 0:00:00]}  h3 {[%clk 0:00:00]} 76. d8=Q {[%clk 0:00:00]}  Nc6+ {[%clk 0:00:00]} 0-1


[Site "https://www.chess.com"]

[Event "Titled Tuesday Blitz August 16 Late 2022"]
[White "Rytenko, Vsevolod"]
[Black "Shimanov, Aleksandr"]
[WhiteFideId "14133040"]
[BlackFideId "4198603"]
[WhiteElo "2120"]
[BlackElo "2605"]
[Result "0-1"]
[Round "04"]
[TimeControl "180+1"]
[Date "2022.08.16"]
[WhiteClock "0:00:02"]
[BlackClock "0:00:23"]

1. e4 {[%clk 0:02:57]}  d5 {[%clk 0:02:59]} 2. Nc3 {[%clk 0:02:55]}  dxe4 {[%clk 0:02:56]} 3. Nxe4 {[%clk 0:02:56]}  Nf6 {[%clk 0:02:57]} 4. Nxf6+ {[%clk 0:02:56]}  exf6 {[%clk 0:02:58]} 5. d4 {[%clk 0:02:54]}  Bd6 {[%clk 0:02:58]} 6. Bd3 {[%clk 0:02:54]}  O-O {[%clk 0:02:59]} 7. Ne2 {[%clk 0:02:54]}  Re8 {[%clk 0:02:58]} 8. O-O {[%clk 0:02:53]}  Nd7 {[%clk 0:02:59]} 9. c3 {[%clk 0:02:53]}  Nf8 {[%clk 0:02:59]} 10. Bf4 {[%clk 0:02:42]}  Rxe2 {[%clk 0:02:49]} 11. Bxd6 {[%clk 0:02:42]}  Rxb2 {[%clk 0:02:49]} 12. Bb4 {[%clk 0:02:22]}  a5 {[%clk 0:02:38]} 13. Qc1 {[%clk 0:02:15]}  Rxb4 {[%clk 0:02:23]} 14. cxb4 {[%clk 0:02:15]}  Qxd4 {[%clk 0:02:23]} 15. Rd1 {[%clk 0:02:15]}  Qe5 {[%clk 0:02:19]} 16. Re1 {[%clk 0:02:05]}  Qd6 {[%clk 0:02:13]} 17. Re8 {[%clk 0:01:53]}  axb4 {[%clk 0:01:52]} 18. Qe3 {[%clk 0:01:10]}  b3 {[%clk 0:01:38]} 19. a4 {[%clk 0:00:24]}  b2 {[%clk 0:00:39]} 20. Rb1 {[%clk 0:00:24]}  Rxa4 {[%clk 0:00:39]} 21. Rxc8 {[%clk 0:00:22]}  Ra3 {[%clk 0:00:40]} 22. Rd1 {[%clk 0:00:06]}  Rxd3 {[%clk 0:00:24]} 23. Rxf8+ {[%clk 0:00:02]}  Kxf8 {[%clk 0:00:23]} 0-1


[Site "https://www.chess.com"]

[Event "Titled Tuesday Blitz August 16 Late 2022"]
[White "Sadovsky, Artem"]
[Black "Averjanov, Alexey"]
[WhiteFideId "4155840"]
[BlackFideId "14109867"]
[WhiteElo "2312"]
[BlackElo "2399"]
[Result "0-1"]
[Round "04"]
[TimeControl "180+1"]
[Date "2022.08.18"]
[WhiteClock "0:00:00"]
[BlackClock "0:00:00"]

1. e3 {[%clk 0:00:00]}  c5 {[%clk 0:00:00]} 2. Nf3 {[%clk 0:00:00]}  Nc6 {[%clk 0:00:00]} 3. d4 {[%clk 0:00:00]}  cxd4 {[%clk 0:00:00]} 4. exd4 {[%clk 0:00:00]}  d5 {[%clk 0:00:00]} 5. c3 {[%clk 0:00:00]}  Nf6 {[%clk 0:00:00]} 6. Be2 {[%clk 0:00:00]}  Bf5 {[%clk 0:00:00]} 7. O-O {[%clk 0:00:00]}  e6 {[%clk 0:00:00]} 8. Nbd2 {[%clk 0:00:00]}  Be7 {[%clk 0:00:00]} 9. Re1 {[%clk 0:00:00]}  h6 {[%clk 0:00:00]} 10. Nf1 {[%clk 0:00:00]}  O-O {[%clk 0:00:00]} 11. Ng3 {[%clk 0:00:00]}  Bg6 {[%clk 0:00:00]} 12. Bf4 {[%clk 0:00:00]}  Ne4 {[%clk 0:00:00]} 13. Ne5 {[%clk 0:00:00]}  Nxe5 {[%clk 0:00:00]} 14. Bxe5 {[%clk 0:00:00]}  Nxg3 {[%clk 0:00:00]} 15. Bxg3 {[%clk 0:00:00]}  Bd6 {[%clk 0:00:00]} 16. Bd3 {[%clk 0:00:00]}  Bxd3 {[%clk 0:00:00]} 17. Qxd3 {[%clk 0:00:00]}  Bxg3 {[%clk 0:00:00]} 18. Qxg3 {[%clk 0:00:00]}  Qf6 {[%clk 0:00:00]} 19. Re5 {[%clk 0:00:00]}  Rab8 {[%clk 0:00:00]} 20. Rae1 {[%clk 0:00:00]}  b6 {[%clk 0:00:00]} 21. h4 {[%clk 0:00:00]}  b5 {[%clk 0:00:00]} 22. h5 {[%clk 0:00:00]}  b4 {[%clk 0:00:00]} 23. Kh2 {[%clk 0:00:00]}  bxc3 {[%clk 0:00:00]} 24. bxc3 {[%clk 0:00:00]}  Rb2 {[%clk 0:00:00]} 25. R1e2 {[%clk 0:00:00]}  Rfb8 {[%clk 0:00:00]} 26. f4 {[%clk 0:00:00]}  Rxe2 {[%clk 0:00:00]} 27. Rxe2 {[%clk 0:00:00]}  Rb1 {[%clk 0:00:00]} 28. Rf2 {[%clk 0:00:00]}  Qf5 {[%clk 0:00:00]} 29. Qh3 {[%clk 0:00:00]}  Qe4 {[%clk 0:00:00]} 30. f5 {[%clk 0:00:00]}  exf5 {[%clk 0:00:00]} 31. Qxf5 {[%clk 0:00:00]}  Qh4+ {[%clk 0:00:00]} 32. Qh3 {[%clk 0:00:00]}  Qxf2 {[%clk 0:00:00]} 33. Qc8+ {[%clk 0:00:00]}  Kh7 {[%clk 0:00:00]} 34. Qf5+ {[%clk 0:00:00]}  Qxf5 {[%clk 0:00:00]} 0-1


[Site "https://www.chess.com"]

[Event "Titled Tuesday Blitz August 16 Late 2022"]
[White "Sourath Biswas"]
[Black "Rosenberg, Evan S"]
[WhiteFideId "35091484"]
[BlackFideId "2019299"]
[WhiteElo "1777"]
[BlackElo "1999"]
[Result "1-0"]
[Round "04"]
[TimeControl "180+1"]
[Date "2022.08.18"]
[WhiteClock "0:00:00"]
[BlackClock "0:00:00"]

1. d4 {[%clk 0:00:00]}  Nf6 {[%clk 0:00:00]} 2. Bf4 {[%clk 0:00:00]}  b6 {[%clk 0:00:00]} 3. Nc3 {[%clk 0:00:00]}  Bb7 {[%clk 0:00:00]} 4. f3 {[%clk 0:00:00]}  d5 {[%clk 0:00:00]} 5. e4 {[%clk 0:00:00]}  e6 {[%clk 0:00:00]} 6. Nb5 {[%clk 0:00:00]}  Na6 {[%clk 0:00:00]} 7. e5 {[%clk 0:00:00]}  Nd7 {[%clk 0:00:00]} 8. Nh3 {[%clk 0:00:00]}  h6 {[%clk 0:00:00]} 9. Bd3 {[%clk 0:00:00]}  Nb4 {[%clk 0:00:00]} 10. Be2 {[%clk 0:00:00]}  a6 {[%clk 0:00:00]} 11. a3 {[%clk 0:00:00]}  axb5 {[%clk 0:00:00]} 12. axb4 {[%clk 0:00:00]}  Bxb4+ {[%clk 0:00:00]} 13. c3 {[%clk 0:00:00]}  Be7 {[%clk 0:00:00]} 14. Bxb5 {[%clk 0:00:00]}  O-O {[%clk 0:00:00]} 15. O-O {[%clk 0:00:00]}  c6 {[%clk 0:00:00]} 16. Bd3 {[%clk 0:00:00]}  Rxa1 {[%clk 0:00:00]} 17. Qxa1 {[%clk 0:00:00]}  Qa8 {[%clk 0:00:00]} 18. Qc1 {[%clk 0:00:00]}  Ba6 {[%clk 0:00:00]} 19. Bxa6 {[%clk 0:00:00]}  Qxa6 {[%clk 0:00:00]} 20. Rd1 {[%clk 0:00:00]}  c5 {[%clk 0:00:00]} 21. Nf2 {[%clk 0:00:00]}  cxd4 {[%clk 0:00:00]} 22. cxd4 {[%clk 0:00:00]}  Rc8 {[%clk 0:00:00]} 23. Qd2 {[%clk 0:00:00]}  Qa5 {[%clk 0:00:00]} 24. Qxa5 {[%clk 0:00:00]}  bxa5 {[%clk 0:00:00]} 25. Rc1 {[%clk 0:00:00]}  Rxc1+ {[%clk 0:00:00]} 26. Bxc1 {[%clk 0:00:00]}  Nb6 {[%clk 0:00:00]} 27. Nd3 {[%clk 0:00:00]}  Nc4 {[%clk 0:00:00]} 28. b3 {[%clk 0:00:00]}  Nb6 {[%clk 0:00:00]} 29. Bd2 {[%clk 0:00:00]}  a4 {[%clk 0:00:00]} 30. bxa4 {[%clk 0:00:00]}  Nxa4 {[%clk 0:00:00]} 31. Kf2 {[%clk 0:00:00]}  Nb6 {[%clk 0:00:00]} 32. Bb4 {[%clk 0:00:00]}  Kf8 {[%clk 0:00:00]} 33. Bc5 {[%clk 0:00:00]}  Nc4 {[%clk 0:00:00]} 34. f4 {[%clk 0:00:00]}  Ke8 {[%clk 0:00:00]} 35. g4 {[%clk 0:00:00]}  Bh4+ {[%clk 0:00:00]} 36. Ke2 {[%clk 0:00:00]}  Bd8 {[%clk 0:00:00]} 37. f5 {[%clk 0:00:00]}  Kd7 {[%clk 0:00:00]} 38. Bf8 {[%clk 0:00:00]}  g6 {[%clk 0:00:00]} 39. fxg6 {[%clk 0:00:00]}  fxg6 {[%clk 0:00:00]} 40. Bxh6 {[%clk 0:00:00]}  Bb6 {[%clk 0:00:00]} 41. Be3 {[%clk 0:00:00]}  Ke7 {[%clk 0:00:00]} 42. h4 {[%clk 0:00:00]}  Kf7 {[%clk 0:00:00]} 43. h5 {[%clk 0:00:00]}  gxh5 {[%clk 0:00:00]} 44. gxh5 {[%clk 0:00:00]}  Kg7 {[%clk 0:00:00]} 45. Nf4 {[%clk 0:00:00]}  Kf7 {[%clk 0:00:00]} 46. h6 {[%clk 0:00:00]}  Ba7 {[%clk 0:00:00]} 47. Nxe6 {[%clk 0:00:00]}  Bb8 {[%clk 0:00:00]} 48. h7 {[%clk 0:00:00]}  Nxe3 {[%clk 0:00:00]} 49. Kxe3 {[%clk 0:00:00]}  Kxe6 {[%clk 0:00:00]} 50. h8=Q {[%clk 0:00:00]}  Bc7 {[%clk 0:00:00]} 51. Qf6+ {[%clk 0:00:00]}  Kd7 {[%clk 0:00:00]} 52. e6+ {[%clk 0:00:00]}  Kc6 {[%clk 0:00:00]} 53. e7+ {[%clk 0:00:00]}  Kd7 {[%clk 0:00:00]} 54. Qf7 {[%clk 0:00:00]}  Bd6 {[%clk 0:00:00]} 55. e8=Q# {[%clk 0:00:00]} 1-0


[Site "https://www.chess.com"]

[Event "Titled Tuesday Blitz August 16 Late 2022"]
[White "Urazayev, Arystanbek"]
[Black "So, Wesley"]
[WhiteFideId "13709810"]
[BlackFideId "5202213"]
[WhiteElo "2441"]
[BlackElo "2763"]
[Result "0-1"]
[Round "04"]
[TimeControl "180+1"]
[Date "2022.08.16"]
[WhiteClock "0:00:07"]
[BlackClock "0:00:22"]

1. e4 {[%clk 0:03:00]}  e5 {[%clk 0:02:58]} 2. Nf3 {[%clk 0:03:01]}  Nc6 {[%clk 0:02:58]} 3. Bb5 {[%clk 0:03:01]}  Nf6 {[%clk 0:02:58]} 4. d3 {[%clk 0:03:01]}  Bc5 {[%clk 0:02:57]} 5. c3 {[%clk 0:03:02]}  O-O {[%clk 0:02:57]} 6. O-O {[%clk 0:03:01]}  Re8 {[%clk 0:02:54]} 7. Bg5 {[%clk 0:02:57]}  a6 {[%clk 0:02:51]} 8. Ba4 {[%clk 0:02:56]}  h6 {[%clk 0:02:51]} 9. Bh4 {[%clk 0:02:55]}  d6 {[%clk 0:02:46]} 10. Nbd2 {[%clk 0:02:54]}  Ba7 {[%clk 0:02:39]} 11. Re1 {[%clk 0:02:53]}  g5 {[%clk 0:02:29]} 12. Bg3 {[%clk 0:02:54]}  Nh7 {[%clk 0:02:29]} 13. d4 {[%clk 0:02:40]}  h5 {[%clk 0:02:17]} 14. h3 {[%clk 0:02:24]}  h4 {[%clk 0:02:16]} 15. Bh2 {[%clk 0:02:24]}  g4 {[%clk 0:02:17]} 16. hxg4 {[%clk 0:02:20]}  Bxg4 {[%clk 0:02:18]} 17. dxe5 {[%clk 0:02:05]}  dxe5 {[%clk 0:02:14]} 18. Bxc6 {[%clk 0:02:00]}  bxc6 {[%clk 0:02:14]} 19. Nc4 {[%clk 0:02:01]}  Qxd1 {[%clk 0:01:35]} 20. Rexd1 {[%clk 0:02:00]}  f6 {[%clk 0:01:35]} 21. Rd3 {[%clk 0:01:49]}  a5 {[%clk 0:01:20]} 22. Nxh4 {[%clk 0:01:41]}  Ng5 {[%clk 0:01:20]} 23. Re1 {[%clk 0:01:33]}  Be6 {[%clk 0:01:11]} 24. b3 {[%clk 0:01:23]}  Bxc4 {[%clk 0:01:09]} 25. bxc4 {[%clk 0:01:24]}  Red8 {[%clk 0:01:09]} 26. Red1 {[%clk 0:01:00]}  Rxd3 {[%clk 0:01:06]} 27. Rxd3 {[%clk 0:01:01]}  Nxe4 {[%clk 0:01:06]} 28. Bg3 {[%clk 0:00:51]}  Rb8 {[%clk 0:01:02]} 29. Nf5 {[%clk 0:00:49]}  Bxf2+ {[%clk 0:00:59]} 30. Bxf2 {[%clk 0:00:44]}  Rb1+ {[%clk 0:00:59]} 31. Kh2 {[%clk 0:00:44]}  Rh1+ {[%clk 0:00:51]} 32. Kxh1 {[%clk 0:00:43]}  Nxf2+ {[%clk 0:00:51]} 33. Kg1 {[%clk 0:00:43]}  Nxd3 {[%clk 0:00:52]} 34. Ne7+ {[%clk 0:00:43]}  Kf7 {[%clk 0:00:52]} 35. Nxc6 {[%clk 0:00:43]}  a4 {[%clk 0:00:53]} 36. Kf1 {[%clk 0:00:38]}  Ke6 {[%clk 0:00:50]} 37. Nb4 {[%clk 0:00:36]}  Nc5 {[%clk 0:00:40]} 38. Ke2 {[%clk 0:00:36]}  f5 {[%clk 0:00:38]} 39. Nd5 {[%clk 0:00:34]}  c6 {[%clk 0:00:37]} 40. Nb4 {[%clk 0:00:32]}  Kd6 {[%clk 0:00:37]} 41. Ke3 {[%clk 0:00:29]}  Ne6 {[%clk 0:00:32]} 42. Nd3 {[%clk 0:00:24]}  Nc5 {[%clk 0:00:32]} 43. Nb4 {[%clk 0:00:23]}  Ne6 {[%clk 0:00:29]} 44. Nd3 {[%clk 0:00:24]}  e4 {[%clk 0:00:29]} 45. Nb4 {[%clk 0:00:18]}  Kc5 {[%clk 0:00:27]} 46. g4 {[%clk 0:00:19]}  fxg4 {[%clk 0:00:28]} 47. Kxe4 {[%clk 0:00:19]}  Nd8 {[%clk 0:00:27]} 48. Kf4 {[%clk 0:00:19]}  Kxc4 {[%clk 0:00:27]} 49. Kxg4 {[%clk 0:00:16]}  Kxc3 {[%clk 0:00:26]} 50. Na6 {[%clk 0:00:12]}  Kb2 {[%clk 0:00:22]} 51. Kf3 {[%clk 0:00:12]}  Kxa2 {[%clk 0:00:22]} 52. Ke2 {[%clk 0:00:12]}  a3 {[%clk 0:00:22]} 53. Kd2 {[%clk 0:00:12]}  Kb1 {[%clk 0:00:22]} 54. Nb4 {[%clk 0:00:06]}  a2 {[%clk 0:00:23]} 55. Nc2 {[%clk 0:00:07]}  a1=Q {[%clk 0:00:20]} 56. Nxa1 {[%clk 0:00:06]}  Kxa1 {[%clk 0:00:21]} 57. Kc3 {[%clk 0:00:07]}  Ka2 {[%clk 0:00:22]} 58. Kb4 {[%clk 0:00:07]}  Kb2 {[%clk 0:00:22]} 0-1


[Site "https://www.chess.com"]

[Event "Titled Tuesday Blitz August 16 Late 2022"]
[White "Vargas, Mauricio"]
[Black "Lopez Perdomo, Juan David"]
[WhiteFideId "4404572"]
[BlackFideId "4405137"]
[WhiteElo "2004"]
[BlackElo "1965"]
[Result "0-1"]
[Round "04"]
[TimeControl "180+1"]
[Date "2022.08.18"]
[WhiteClock "0:00:00"]
[BlackClock "0:00:00"]

1. e4 {[%clk 0:00:00]}  e6 {[%clk 0:00:00]} 2. f4 {[%clk 0:00:00]}  d5 {[%clk 0:00:00]} 3. e5 {[%clk 0:00:00]}  c5 {[%clk 0:00:00]} 4. Nf3 {[%clk 0:00:00]}  Nh6 {[%clk 0:00:00]} 5. Bb5+ {[%clk 0:00:00]}  Bd7 {[%clk 0:00:00]} 6. Bxd7+ {[%clk 0:00:00]}  Nxd7 {[%clk 0:00:00]} 7. O-O {[%clk 0:00:00]}  Be7 {[%clk 0:00:00]} 8. d3 {[%clk 0:00:00]}  O-O {[%clk 0:00:00]} 9. Qe1 {[%clk 0:00:00]}  f5 {[%clk 0:00:00]} 10. exf6 {[%clk 0:00:00]}  Rxf6 {[%clk 0:00:00]} 11. h3 {[%clk 0:00:00]}  Bd6 {[%clk 0:00:00]} 12. Ng5 {[%clk 0:00:00]}  Qe7 {[%clk 0:00:00]} 13. g4 {[%clk 0:00:00]}  Raf8 {[%clk 0:00:00]} 14. f5 {[%clk 0:00:00]}  exf5 {[%clk 0:00:00]} 15. Qh4 {[%clk 0:00:00]}  fxg4 {[%clk 0:00:00]} 16. Rxf6 {[%clk 0:00:00]}  Qxf6 {[%clk 0:00:00]} 17. Qe1 {[%clk 0:00:00]}  Ne5 {[%clk 0:00:00]} 18. Nc3 {[%clk 0:00:00]}  Nhf7 {[%clk 0:00:00]} 19. Nxd5 {[%clk 0:00:00]}  Qg6 {[%clk 0:00:00]} 20. Qh4 {[%clk 0:00:00]}  Nxg5 {[%clk 0:00:00]} 21. Bxg5 {[%clk 0:00:00]}  Nf3+ {[%clk 0:00:00]} 22. Kg2 {[%clk 0:00:00]}  Nxh4+ {[%clk 0:00:00]} 23. Bxh4 {[%clk 0:00:00]}  gxh3+ {[%clk 0:00:00]} 24. Kxh3 {[%clk 0:00:00]}  Rf3+ {[%clk 0:00:00]} 25. Bg3 {[%clk 0:00:00]}  Qxg3# {[%clk 0:00:00]} 0-1


[Site "https://www.chess.com"]